bitfinex/quotes_BTCUSD_20250727
["timestamp","ask_amount","ask_price","bid_price","bid_amount"]
[1753648607448,1.96792799,119060.0,119050.0,0.6909194]
[1753648607670,2.02369863,119060.0,119050.0,0.6909194]
[1753648607879,1.96792799,119060.0,119050.0,0.6909194]
[1753648608095,1.95047897,119060.0,119050.0,0.6909194]
[1753648608318,1.96792799,119060.0,119050.0,0.6909194]
[1753648611177,1.99316299,119060.0,119050.0,0.6909194]
[1753648611599,2.02977299,119060.0,119050.0,0.6003094]
[1753648613506,2.02977299,119060.0,119050.0,0.6315194]
[1753648613742,2.02977299,119060.0,119050.0,0.6335194]
[1753648613966,1.99316299,119060.0,119050.0,0.6935194]
[1753648614192,1.21411455,119060.0,119050.0,0.6935194]
[1753648614402,1.43364778,119060.0,119050.0,0.6935194]
[1753648614614,1.56100778,119060.0,119050.0,0.86151604]
[1753648614827,1.26566484,119060.0,119050.0,0.87831534]
[1753648615098,0.94424522,119060.0,119050.0,0.88671467]
[1753648615312,0.70186074,119060.0,119050.0,0.88671467]
[1753648615546,0.71025972,119060.0,119050.0,0.87831534]
[1753648615770,1.04186088,119060.0,119050.0,0.87831534]
[1753648615985,0.67755863,119060.0,119050.0,0.88671467]
[1753648616201,1.04186088,119060.0,119050.0,0.88671467]
[1753648616430,1.29186088,119060.0,119050.0,0.88671467]
[1753648616659,1.30025972,119060.0,119050.0,0.86991573]
[1753648616885,1.11233897,119060.0,119050.0,0.86991573]
[1753648617108,1.42754429,119060.0,119050.0,0.87831563]
[1753648617308,1.42754429,119060.0,119050.0,0.88571525]
[1753648617436,1.42754429,119060.0,119050.0,0.89411494]
[1753648617684,1.42754429,119060.0,119050.0,0.88771532]
[1753648617952,1.48331493,119060.0,119050.0,0.88771532]
[1753648618174,1.42754429,119060.0,119050.0,0.88671532]
[1753648618401,1.49522377,119060.0,119050.0,0.6935194]
[1753648618594,1.49522377,119060.0,119050.0,0.6965194]
[1753648622385,1.49522377,119060.0,119050.0,0.6935794]
[1753648622803,1.50056377,119060.0,119050.0,0.6935794]
[1753648623014,1.53037377,119060.0,119050.0,0.6935794]
[1753648623225,1.54782279,119060.0,119050.0,0.6916194]
[1753648623432,1.54782279,119060.0,119050.0,0.6325094]
[1753648624036,1.54782279,119060.0,119050.0,0.6053094]
[1753648624281,1.54782279,119060.0,119050.0,0.6023094]
[1753648624751,1.54782279,119060.0,119050.0,0.6043094]
[1753648625640,1.54782279,119060.0,119050.0,0.6023094]
[1753648625853,1.54782279,119060.0,119050.0,0.6003094]
[1753648626038,1.54782279,119060.0,119050.0,0.6013094]
[1753648626449,1.54782279,119060.0,119050.0,0.6033094]
[1753648626875,1.54782279,119060.0,119050.0,0.6053094]
[1753648627484,1.54782279,119060.0,119050.0,0.6023094]
[1753648627961,1.54782279,119060.0,119050.0,0.6053094]
[1753648630416,1.55221317,119060.0,119050.0,0.6053094]
[1753648632517,1.93081712,119060.0,119050.0,0.6053094]
[1753648632720,1.95605512,119060.0,119050.0,0.6053094]
[1753648632966,1.63245117,119060.0,119050.0,0.6053094]
[1753648633166,1.57745117,119060.0,119050.0,0.6310894]
[1753648633377,1.54238117,119060.0,119050.0,0.6873794]
[1753648634349,1.54238117,119060.0,119050.0,0.6607794]
[1753648634557,1.54772117,119060.0,119050.0,0.6607794]
[1753648634758,1.57753117,119060.0,119050.0,0.6331794]
[1753648634972,1.57753117,119060.0,119050.0,0.6310894]
[1753648635888,1.57753117,119060.0,119050.0,0.6320894]
[1753648637537,1.57753117,119060.0,119050.0,0.6310894]
[1753648638224,1.57753117,119060.0,119050.0,0.6003094]
[1753648639951,1.57753117,119060.0,119050.0,0.6310894]
[1753648641404,1.90113512,119060.0,119050.0,0.6003094]
[1753648641612,1.95543512,119060.0,119050.0,0.6003094]
[1753648642454,1.95543512,119060.0,119050.0,0.16838771]
[1753648642666,6.97116515,119060.0,119050.0,0.16838771]
[1753648643836,1.97116515,119060.0,119050.0,0.16838771]
[1753648644056,6.97116515,119060.0,119050.0,0.16838771]
[1753648645435,6.97115871,119060.0,119050.0,0.16838771]
[1753648646451,6.97705496,119060.0,119050.0,0.16838771]
[1753648651105,6.97115871,119060.0,119050.0,0.16838771]
[1753648651311,6.97705221,119060.0,119050.0,0.16838771]
[1753648652285,6.97115871,119060.0,119050.0,0.16838771]
[1753648652903,6.43600476,119060.0,119050.0,0.20305771]
[1753648653147,1.56026476,119060.0,119050.0,0.23035771]
[1753648653362,1.55814476,119060.0,119050.0,0.25835771]
[1753648654403,1.88676871,119060.0,119050.0,0.20305771]
[1753648654614,1.91716871,119060.0,119050.0,0.20305771]
[1753648654827,1.59356476,119060.0,119050.0,0.20305771]
[1753648655428,1.26428476,119060.0,119050.0,0.20305771]
[1753648655669,1.39184476,119060.0,119050.0,0.20305771]
[1753648656879,1.36144476,119060.0,119050.0,0.20305771]
[1753648657665,1.36144476,119060.0,119050.0,0.23015771]
[1753648658367,1.36144476,119060.0,119050.0,0.25775771]
[1753648658797,1.36144476,119060.0,119050.0,0.23015771]
[1753648660151,1.39184476,119060.0,119050.0,0.20305771]
[1753648660514,1.71544871,119060.0,119050.0,0.20305771]
[1753648661258,1.68504871,119060.0,119050.0,0.20305771]
[1753648661463,1.68504871,119060.0,119050.0,0.23135771]
[1753648662915,1.76635735,119060.0,119050.0,0.23135771]
[1753648663552,1.76635735,119060.0,119050.0,0.20305771]
[1753648663769,1.79675735,119060.0,119050.0,0.20305771]
[1753648664760,1.79675735,119060.0,119050.0,0.20105771]
[1753648665166,1.79675735,119060.0,119050.0,0.16838771]
[1753648666913,1.78103376,119060.0,119050.0,0.16838771]
[1753648667124,1.79676496,119060.0,119050.0,0.16838771]
[1753648667751,1.79676496,119060.0,119050.0,0.20105771]
[1753648668476,1.79676496,119060.0,119050.0,0.22985771]
[1753648668684,1.76636496,119060.0,119050.0,0.23185771]
[1753648669741,1.75063376,119060.0,119050.0,0.23185771]
[1753648669879,1.78103376,119060.0,119050.0,0.20305771]
[1753648670086,1.79677222,119060.0,119050.0,0.20305771]
[1753648670301,1.79677244,119060.0,119050.0,0.20305771]
[1753648670507,1.78103376,119060.0,119050.0,0.20305771]
[1753648670938,1.79677256,119060.0,119050.0,0.20105771]
[1753648671157,1.77153456,119060.0,119050.0,0.16838771]
[1753648675902,1.82813456,119060.0,119050.0,0.16838771]
[1753648676678,1.70057456,119060.0,119050.0,0.16838771]
[1753648676867,2.02981456,119060.0,119050.0,0.16838771]
[1753648677078,1.97321456,119060.0,119050.0,0.16838771]
[1753648677684,2.02981456,119060.0,119050.0,0.16838771]
[1753648679551,2.0298207,119060.0,119050.0,0.16838771]
[1753648681333,2.39998428,119060.0,119050.0,0.16838771]
[1753648681511,7.03572776,119060.0,119050.0,0.16838771]
[1753648682459,7.03576776,119060.0,119050.0,0.16838771]
[1753648682664,7.03676776,119060.0,119050.0,0.16838771]
[1753648683525,7.03776776,119060.0,119050.0,0.16838771]
[1753648686849,7.03776849,119060.0,119050.0,0.16838771]
[1753648690647,2.03776849,119060.0,119050.0,0.16838771]
[1753648690950,7.03776849,119060.0,119050.0,0.16838771]
[1753648691533,6.98116849,119060.0,119050.0,0.16838771]
[1753648693161,6.98116849,119060.0,119050.0,0.19789771]
[1753648693866,6.98116849,119060.0,119050.0,0.16838771]
[1753648695396,7.00886849,119060.0,119050.0,0.16838771]
[1753648696012,7.03816849,119060.0,119050.0,0.16838771]
[1753648697519,6.98116849,119060.0,119050.0,0.16838771]
[1753648699313,6.98904339,119060.0,119050.0,0.16838771]
[1753648699511,6.26052685,119060.0,119050.0,0.16838771]
[1753648699717,6.98904339,119060.0,119050.0,0.16838771]
[1753648702087,2.01784339,119060.0,119050.0,0.16838771]
[1753648702298,7.01784339,119060.0,119050.0,0.16838771]
[1753648702757,7.04764339,119060.0,119050.0,0.16838771]
[1753648703514,6.98904339,119060.0,119050.0,0.16838771]
[1753648705775,7.01704339,119060.0,119050.0,0.16838771]
[1753648706174,7.04494339,119060.0,119050.0,0.16838771]
[1753648707656,7.04495112,119060.0,119050.0,0.16838771]
[1753648707865,7.10072176,119060.0,119050.0,0.16838771]
[1753648708181,7.04495387,119060.0,119050.0,0.16838771]
[1753648710740,7.04495445,119060.0,119050.0,0.16838771]
[1753648711923,7.40941272,119060.0,119050.0,1e-08]
[1753648712366,7.43465372,119060.0,119050.0,1e-08]
[1753648712579,7.07039545,119060.0,119050.0,1e-08]
[1753648713669,7.07039717,119060.0,119050.0,1e-08]
[1753648713868,7.07039599,119060.0,119050.0,1e-08]
[1753648716177,7.07039533,119060.0,119050.0,1e-08]
[1753648716610,7.07039268,119060.0,119050.0,1e-08]
[1753648718172,7.07039404,119060.0,119050.0,1e-08]
[1753648718650,2.07039404,119060.0,119050.0,1e-08]
[1753648718861,7.07039404,119060.0,119050.0,1e-08]
[1753648719299,6.97887404,119060.0,119050.0,0.06156001]
[1753648719518,6.85143404,119060.0,119050.0,0.09243001]
[1753648719708,6.93980817,119060.0,119050.0,0.09540001]
[1753648723886,6.94176525,119060.0,119050.0,0.06273001]
[1753648724105,6.97509525,119060.0,119050.0,0.06273001]
[1753648724517,6.97509525,119060.0,119050.0,0.03283001]
[1753648724752,6.97509525,119060.0,119050.0,0.03087001]
[1753648725391,6.64585525,119060.0,119050.0,1e-08]
[1753648725596,7.03730043,119060.0,119050.0,1e-08]
[1753648728943,6.98100043,119060.0,119050.0,1e-08]
[1753648730273,7.03830062,119060.0,119050.0,1e-08]
[1753648731042,7.0383006,119060.0,119050.0,1e-08]
[1753648731249,6.95934576,119060.0,119050.0,1e-08]
[1753648731723,6.97509315,119060.0,119050.0,1e-08]
[1753648732251,6.98099842,119060.0,119050.0,1e-08]
[1753648732464,6.98099808,119060.0,119050.0,1e-08]
[1753648732668,6.96525094,119060.0,119050.0,1e-08]
[1753648732870,6.97509226,119060.0,119050.0,1e-08]
[1753648733088,6.98099719,119060.0,119050.0,1e-08]
[1753648734012,7.03839719,119060.0,119050.0,1e-08]
[1753648734910,6.94766719,119060.0,119050.0,0.03280001]
[1753648735109,6.94176226,119060.0,119050.0,0.06260001]
[1753648736896,6.94495226,119060.0,119050.0,0.06260001]
[1753648737307,6.97474226,119060.0,119050.0,0.03280001]
[1753648737518,6.97474226,119060.0,119050.0,1e-08]
[1753648739203,6.98064693,119060.0,119050.0,1e-08]
[1753648740612,7.03744693,119060.0,119050.0,1e-08]
[1753648740995,7.06268596,119060.0,119050.0,1e-08]
[1753648742378,6.73344596,119060.0,119050.0,1e-08]
[1753648742606,7.0706379,119060.0,119050.0,1e-08]
[1753648742813,7.08378756,119060.0,119050.0,1e-08]
[1753648747243,7.59804583,119060.0,119050.0,1e-08]
[1753648747466,7.23378756,119060.0,119050.0,1e-08]
[1753648749247,6.50527102,119060.0,119050.0,1e-08]
[1753648749451,7.23378756,119060.0,119050.0,1e-08]
[1753648750129,6.50527102,119060.0,119050.0,1e-08]
[1753648750363,7.01456756,119060.0,119050.0,0.03280001]
[1753648750603,6.99288756,119060.0,119050.0,0.09618001]
[1753648750820,6.62862929,119060.0,119050.0,0.09618001]
[1753648751033,1.62862929,119060.0,119050.0,0.09618001]
[1753648751240,1.98501562,119060.0,119050.0,0.09618001]
[1753648751451,6.98501562,119060.0,119050.0,0.09618001]
[1753648751664,6.95977562,119060.0,119050.0,0.09618001]
[1753648753574,6.95977562,119060.0,119050.0,0.09310001]
[1753648754013,6.96181562,119060.0,119050.0,0.09310001]
[1753648756073,6.96500562,119060.0,119050.0,0.09310001]
[1753648756619,6.96532562,119060.0,119050.0,0.09310001]
[1753648757042,6.99511562,119060.0,119050.0,0.09310001]
[1753648757251,6.99511562,119060.0,119050.0,1e-08]
[1753648757485,6.66463562,119060.0,119050.0,1e-08]
[1753648757715,6.99511562,119060.0,119050.0,0.03069001]
[1753648757932,6.9951149,119060.0,119050.0,0.03069001]
[1753648758262,6.98921095,119060.0,119050.0,0.03069001]
[1753648758441,6.65873095,119060.0,119050.0,0.03069001]
[1753648758776,6.98917095,119060.0,119050.0,0.03069001]
[1753648762248,7.00294583,119060.0,119050.0,0.03069001]
[1753648762618,7.02818583,119060.0,119050.0,0.03069001]
[1753648763072,2.02818583,119060.0,119050.0,0.03069001]
[1753648763209,7.02818583,119060.0,119050.0,0.03069001]
[1753648763726,7.0281859,119060.0,119050.0,0.03069001]
[1753648763927,7.0281859,119060.0,119050.0,1e-08]
[1753648766523,6.27442936,119060.0,119050.0,1e-08]
[1753648766716,7.0029459,119060.0,119050.0,1e-08]
[1753648767924,7.0612459,119060.0,119050.0,1e-08]
[1753648768335,7.0864869,119060.0,119050.0,1e-08]
[1753648768901,7.0844869,119060.0,119050.0,1e-08]
[1753648769246,7.0854869,119060.0,119050.0,1e-08]
[1753648769454,7.0864869,119060.0,119050.0,1e-08]
[1753648770092,7.08058312,119060.0,119050.0,1e-08]
[1753648770409,7.08648663,119060.0,119050.0,1e-08]
[1753648771471,7.23648663,119060.0,119050.0,1e-08]
[1753648772499,7.23724663,119060.0,119050.0,1e-08]
[1753648772949,7.23724253,119060.0,119050.0,1e-08]
[1753648774463,0.53384535,119050.0,119040.0,0.04988589]
[1753648774677,5.54226048,119040.0,119030.0,0.45649418]
[1753648774892,6.45672935,119040.0,119030.0,0.45649418]
[1753648775106,6.48958935,119040.0,119030.0,0.45649418]
[1753648775357,6.49022224,119040.0,119030.0,0.45649418]
[1753648775570,6.35496012,119040.0,119030.0,0.45649418]
[1753648775784,6.68615773,119040.0,119030.0,0.4569801]
[1753648776413,6.93615773,119040.0,119030.0,0.4569801]
[1753648777061,6.94305806,119040.0,119030.0,0.4569801]
[1753648777297,2.00005806,119040.0,119030.0,0.4569801]
[1753648777519,6.99415773,119040.0,119030.0,0.4569801]
[1753648777726,6.99515339,119040.0,119030.0,0.4569801]
[1753648778560,0.55843995,119040.0,119030.0,0.79300662]
[1753648778788,0.55404957,119040.0,119030.0,0.80980825]
[1753648779010,0.55404957,119040.0,119030.0,1.13378223]
[1753648779011,0.14729227,119040.0,119030.0,1.13378223]
[1753648779281,0.02989227,119040.0,119030.0,1.10538223]
[1753648779494,0.62359452,119060.0,119050.0,0.20779609]
[1753648779708,0.49775168,119060.0,119050.0,0.20779609]
[1753648779928,0.49779168,119060.0,119050.0,0.20779609]
[1753648780146,0.82176566,119060.0,119050.0,0.21619577]
[1753648780361,1.16176566,119060.0,119050.0,0.21619585]
[1753648780572,1.0404445,119060.0,119050.0,0.20779623]
[1753648780782,0.84615101,119060.0,119050.0,0.19939647]
[1753648780988,0.83775203,119060.0,119050.0,0.21079623]
[1753648781206,0.84615101,119060.0,119050.0,0.21079623]
[1753648781408,0.83775203,119060.0,119050.0,0.21919592]
[1753648781554,0.83775224,119060.0,119050.0,0.19399664]
[1753648781781,0.84615115,119060.0,119050.0,0.2043964]
[1753648781968,0.84615115,119060.0,119050.0,0.21279609]
[1753648782167,0.84615115,119060.0,119050.0,0.2043964]
[1753648782525,1.15332738,119060.0,119050.0,0.2043964]
[1753648782736,1.14492861,119060.0,119050.0,0.21279602]
[1753648782952,1.16172636,119060.0,119050.0,0.21279609]
[1753648783147,1.14492861,119060.0,119050.0,0.22119571]
[1753648783384,1.15332745,119060.0,119050.0,0.21279609]
[1753648783593,0.8041573,119060.0,119050.0,0.22959496]
[1753648783795,0.8041573,119060.0,119050.0,0.26935438]
[1753648783796,0.71968,119060.0,119050.0,0.26935438]
[1753648783989,0.71968,119060.0,119050.0,0.22959496]
[1753648784248,0.46968,119060.0,119050.0,0.22959496]
[1753648784663,0.34,119060.0,119050.0,0.22959496]
[1753648784870,0.46996,119060.0,119050.0,0.22959496]
[1753648786412,0.46996,119060.0,119050.0,0.55356894]
[1753648787366,0.34,119060.0,119050.0,0.55356894]
[1753648787768,0.253,119070.0,119060.0,0.21567904]
[1753648787942,0.72296,119070.0,119060.0,0.53965302]
[1753648788173,0.47296,119070.0,119060.0,0.53965302]
[1753648789480,0.47292,119070.0,119060.0,0.53965302]
[1753648789610,0.47292,119070.0,119060.0,0.54165302]
[1753648790018,0.47292,119070.0,119060.0,0.54465302]
[1753648790450,0.47292,119070.0,119060.0,0.22067904]
[1753648790649,0.343,119070.0,119060.0,0.22067904]
[1753648790831,0.47292,119070.0,119060.0,0.22067904]
[1753648791446,0.343,119070.0,119060.0,0.22067904]
[1753648791644,0.47288,119070.0,119060.0,0.54465302]
[1753648792930,0.47288,119070.0,119060.0,0.22067904]
[1753648793374,0.47288,119070.0,119060.0,0.19548252]
[1753648793547,0.47288,119070.0,119060.0,0.22067904]
[1753648794773,0.48967605,119070.0,119060.0,0.22670904]
[1753648794991,1.03527493,119070.0,119060.0,0.18138164]
[1753648795189,1.10295632,119070.0,119060.0,0.17298252]
[1753648795601,1.09455812,119070.0,119060.0,0.17298252]
[1753648796346,1.34455812,119070.0,119060.0,0.17298252]
[1753648796557,1.34455812,119070.0,119060.0,0.005]
[1753648796763,1.40265812,119070.0,119060.0,0.005]
[1753648797201,1.27277812,119070.0,119060.0,0.005]
[1753648797450,1.40265812,119070.0,119060.0,0.005]
[1753648798385,1.34455812,119070.0,119060.0,0.005]
[1753648798827,1.40155812,119070.0,119060.0,0.005]
[1753648801271,1.41900714,119070.0,119060.0,0.005]
[1753648802388,1.43467427,119070.0,119060.0,0.005]
[1753648802830,1.43467427,119070.0,119060.0,0.002]
[1753648803045,0.5248116,119040.0,119030.0,0.4569801]
[1753648803279,0.97854558,119040.0,119030.0,0.4569801]
[1753648803492,1.01540558,119040.0,119030.0,0.6334062]
[1753648803705,1.01540558,119040.0,119030.0,0.4569801]
[1753648804158,1.09988288,119040.0,119030.0,0.4569801]
[1753648804372,1.16098288,119040.0,119030.0,0.4569801]
[1753648804599,1.16098288,119040.0,119030.0,0.4639801]
[1753648805421,1.41098288,119040.0,119030.0,0.4639801]
[1753648805824,1.41098288,119040.0,119030.0,0.4599801]
[1753648806014,1.41098288,119040.0,119030.0,0.4569801]
[1753648806193,1.41098288,119040.0,119030.0,0.4599801]
[1753648806394,1.41098288,119040.0,119030.0,0.4619801]
[1753648808148,1.0870089,119040.0,119030.0,0.4619801]
[1753648808380,1.41098288,119040.0,119030.0,0.4619801]
[1753648809901,1.0870089,119040.0,119030.0,0.4619801]
[1753648810122,1.42669728,119040.0,119030.0,0.4619801]
[1753648811122,1.41098288,119040.0,119030.0,0.4619801]
[1753648817926,1.0870089,119040.0,119030.0,0.4619801]
[1753648818102,1.41098288,119040.0,119030.0,0.4619801]
[1753648819695,1.0870089,119040.0,119030.0,0.4619801]
[1753648819900,1.41098288,119040.0,119030.0,0.4619801]
[1753648822537,1.0870089,119040.0,119030.0,0.4619801]
[1753648823191,0.9572489,119040.0,119030.0,0.4619801]
[1753648823395,1.41110288,119040.0,119030.0,0.4619801]
[1753648826279,1.0871289,119040.0,119030.0,0.4619801]
[1753648826486,1.41110288,119040.0,119030.0,0.4619801]
[1753648828314,0.9890889,119040.0,119030.0,0.4619801]
[1753648828518,0.9890889,119040.0,119030.0,0.63000496]
[1753648828722,1.31306288,119040.0,119030.0,0.4619801]
[1753648828924,1.30466256,119040.0,119030.0,0.4619801]
[1753648829130,1.33670256,119040.0,119030.0,0.4619801]
[1753648829301,1.33963256,119040.0,119030.0,0.4619801]
[1753648830982,1.01565858,119040.0,119030.0,0.4619801]
[1753648831178,1.33963256,119040.0,119030.0,0.4619801]
[1753648831985,1.01565858,119040.0,119030.0,0.4619801]
[1753648832198,1.33963256,119040.0,119030.0,0.4619801]
[1753648832465,1.33967256,119040.0,119030.0,0.4619801]
[1753648832807,1.33975256,119040.0,119030.0,0.4619801]
[1753648833249,1.01577858,119040.0,119030.0,0.4619801]
[1753648833530,1.33975256,119040.0,119030.0,0.4619801]
[1753648833942,1.33971256,119040.0,119030.0,0.4619801]
[1753648834195,1.40202256,119040.0,119030.0,0.4619801]
[1753648835340,1.07804858,119040.0,119030.0,0.4619801]
[1753648835552,1.07804858,119040.0,119030.0,0.63000496]
[1753648835553,1.40198256,119040.0,119030.0,0.63000496]
[1753648836208,1.40198256,119040.0,119030.0,0.4619801]
[1753648837845,1.07800858,119040.0,119030.0,0.4619801]
[1753648838068,1.40198256,119040.0,119030.0,0.4619801]
[1753648839534,1.27214256,119040.0,119030.0,0.4619801]
[1753648839703,1.40194256,119040.0,119030.0,0.4619801]
[1753648844142,1.40194256,119040.0,119030.0,0.63000496]
[1753648844343,1.40194256,119040.0,119030.0,0.6384062]
[1753648844929,1.39354203,119040.0,119030.0,0.4619801]
[1753648845170,1.39354203,119040.0,119030.0,0.63000496]
[1753648845609,1.39354203,119040.0,119030.0,0.4619801]
[1753648846398,0.93976805,119040.0,119030.0,0.4619801]
[1753648846593,1.39338203,119040.0,119030.0,0.4619801]
[1753648848416,1.26374203,119040.0,119030.0,0.4619801]
[1753648848622,1.39334203,119040.0,119030.0,0.4619801]
[1753648850651,1.06936805,119040.0,119030.0,0.63000496]
[1753648850861,1.39334203,119040.0,119030.0,0.63840613]
[1753648851313,1.39334203,119040.0,119030.0,0.63000496]
[1753648852337,1.39334203,119040.0,119030.0,0.62350496]
[1753648852568,1.06936805,119040.0,119030.0,0.62350496]
[1753648852771,1.39334203,119040.0,119030.0,0.62350496]
[1753648853008,1.06936805,119040.0,119030.0,0.4554801]
[1753648853247,1.39334203,119040.0,119030.0,0.62350496]
[1753648853915,1.39334203,119040.0,119030.0,0.4554801]
[1753648855231,1.39334203,119040.0,119030.0,0.62350496]
[1753648856332,1.39334203,119040.0,119030.0,0.4554801]
[1753648857456,1.39334203,119040.0,119030.0,0.62350496]
[1753648860664,1.39334203,119040.0,119030.0,0.4554801]
[1753648861135,1.39334203,119040.0,119030.0,0.62350496]
[1753648861577,1.39334203,119040.0,119030.0,0.4554801]
[1753648862452,1.39334203,119040.0,119030.0,0.62350496]
[1753648862699,1.39310203,119040.0,119030.0,0.6319062]
[1753648862903,1.79758477,119040.0,119030.0,0.62350496]
[1753648863344,1.79758477,119040.0,119030.0,0.63190613]
[1753648863571,1.79758477,119040.0,119030.0,0.6319062]
[1753648863797,1.79758477,119040.0,119030.0,0.64030737]
[1753648864048,1.79758477,119040.0,119030.0,0.6319062]
[1753648864274,1.79758477,119040.0,119030.0,0.62350496]
[1753648865216,1.79758477,119040.0,119030.0,0.63190613]
[1753648865428,1.66822477,119040.0,119030.0,0.63190613]
[1753648865653,1.79750477,119040.0,119030.0,0.6319062]
[1753648866787,1.79750477,119040.0,119030.0,0.62350496]
[1753648867016,1.66822477,119040.0,119030.0,0.64030723]
[1753648867233,1.79746477,119040.0,119030.0,0.64030723]
[1753648867686,1.66822477,119040.0,119030.0,0.64030723]
[1753648867918,1.79746477,119040.0,119030.0,0.63190613]
[1753648868604,1.79746477,119040.0,119030.0,0.4554801]
[1753648869058,1.79746477,119040.0,119030.0,0.62350496]
[1753648869287,1.79746477,119040.0,119030.0,0.4554801]
[1753648871344,2.16169313,119040.0,119030.0,0.4554801]
[1753648871590,1.79746477,119040.0,119030.0,0.4554801]
[1753648872953,1.71674071,119040.0,119030.0,0.4554801]
[1753648874499,1.26363438,119040.0,119030.0,0.4554801]
[1753648874724,0.9009573,119040.0,119030.0,0.64870783]
[1753648874953,0.72759997,119040.0,119030.0,0.64870783]
[1753648875181,0.7192,119040.0,119030.0,0.64870783]
[1753648875383,0.34,119040.0,119030.0,0.64870783]
[1753648875623,0.47763997,119040.0,119030.0,0.64870783]
[1753648875845,0.48604015,119040.0,119030.0,0.64870783]
[1753648876293,0.73604008,119040.0,119030.0,0.64870783]
[1753648876523,0.76775008,119040.0,119030.0,0.64870783]
[1753648877056,0.75934997,119040.0,119030.0,0.64870783]
[1753648877312,0.50934997,119040.0,119030.0,0.64870783]
[1753648878368,0.64691026,119040.0,119030.0,0.64870783]
[1753648878602,0.78451065,119040.0,119030.0,0.64870783]
[1753648878812,1.10837691,119040.0,119030.0,0.64870783]
[1753648879063,1.10305659,119040.0,119030.0,0.64870783]
[1753648880720,1.14245698,119040.0,119030.0,0.64030709]
[1753648880924,1.18366751,119040.0,119030.0,0.64870798]
[1753648881127,1.18366751,119040.0,119030.0,0.65710879]
[1753648881341,1.18366751,119040.0,119030.0,0.64870798]
[1753648882010,1.17526698,119040.0,119030.0,0.64870798]
[1753648882239,1.33487825,119040.0,119030.0,0.6319062]
[1753648882465,1.01101192,119040.0,119030.0,0.64870847]
[1753648882654,1.33487825,119040.0,119030.0,0.6571095]
[1753648882876,1.33487825,119040.0,119030.0,0.64870847]
[1753648883363,1.33487825,119040.0,119030.0,0.66551046]
[1753648883593,1.15846697,119040.0,119030.0,0.66551011]
[1753648883817,1.15846697,119040.0,119030.0,0.65710894]
[1753648884041,1.1668675,119040.0,119030.0,0.65710894]
[1753648884273,1.15846697,119040.0,119030.0,0.65710894]
[1753648884502,1.16686701,119040.0,119030.0,0.66550968]
[1753648884711,1.16686694,119040.0,119030.0,0.66550968]
[1753648885285,1.16686694,119040.0,119030.0,0.66550975]
[1753648885534,1.1752674,119040.0,119030.0,0.66550975]
[1753648885737,1.1752674,119040.0,119030.0,0.65710894]
[1753648885940,1.1752674,119040.0,119030.0,0.66550975]
[1753648886143,1.17526733,119040.0,119030.0,0.66550975]
[1753648886606,1.17526733,119040.0,119030.0,0.65710894]
[1753648887360,1.17526733,119040.0,119030.0,0.66550975]
[1753648887558,1.32647779,119040.0,119030.0,0.62350496]
[1753648889864,1.15846704,119040.0,119030.0,0.64030737]
[1753648890723,1.16686757,119040.0,119030.0,0.64030737]
[1753648890933,1.16686757,119040.0,119030.0,0.6319062]
[1753648892436,1.02926704,119040.0,119030.0,0.64030737]
[1753648892660,1.15838704,119040.0,119030.0,0.64030737]
[1753648892873,1.16678757,119040.0,119030.0,0.64030737]
[1753648893318,1.15838676,119040.0,119030.0,0.6487084]
[1753648893539,1.15838676,119040.0,119030.0,0.64030737]
[1753648893774,1.16678722,119040.0,119030.0,0.64030737]
[1753648894220,1.33479797,119040.0,119030.0,0.62350496]
[1753648894441,1.3431985,119040.0,119030.0,0.62350496]
[1753648894678,1.3431985,119040.0,119030.0,0.6319062]
[1753648895115,1.3431985,119040.0,119030.0,0.62350496]
[1753648895374,1.17518775,119040.0,119030.0,0.63190613]
[1753648895593,1.02926676,119040.0,119030.0,0.64030723]
[1753648895835,1.16670722,119040.0,119030.0,0.64030723]
[1753648896042,1.15830676,119040.0,119030.0,0.64870826]
[1753648896241,1.2140374,119040.0,119030.0,0.64870826]
[1753648896471,1.15826676,119040.0,119030.0,0.64030723]
[1753648896912,1.15826676,119040.0,119030.0,0.63190613]
[1753648897186,1.16666722,119040.0,119030.0,0.63190613]
[1753648897664,1.16666722,119040.0,119030.0,0.64030723]
[1753648897917,1.16666722,119040.0,119030.0,0.63190613]
[1753648898162,1.16666729,119040.0,119030.0,0.6319062]
[1753648898405,1.16666722,119040.0,119030.0,0.64030737]
[1753648898848,1.16666722,119040.0,119030.0,0.64870847]
[1753648899033,1.16666722,119040.0,119030.0,0.64030737]
[1753648899442,1.16658722,119040.0,119030.0,0.64030737]
[1753648899811,1.15818676,119040.0,119030.0,0.6487084]
[1753648900015,1.16658722,119040.0,119030.0,0.64030737]
[1753648900623,1.33459797,119040.0,119030.0,0.6319062]
[1753648900881,1.16658722,119040.0,119030.0,0.64030737]
[1753648901522,1.16658722,119040.0,119030.0,0.6319062]
[1753648901659,1.16658722,119040.0,119030.0,0.64030737]
[1753648901868,1.2139574,119040.0,119030.0,0.64030737]
[1753648902064,1.16658659,119040.0,119030.0,0.64870847]
[1753648902326,1.16658659,119040.0,119030.0,0.65710943]
[1753648903146,0.3118,119040.0,119030.0,0.65710943]
[1753648903362,0.0936,119050.0,119040.0,0.1932115]
[1753648903576,0.0327,119050.0,119040.0,0.1932115]
[1753648903762,0.50154,119050.0,119040.0,0.18481146]
[1753648904001,0.90250499,119050.0,119040.0,0.20161175]
[1753648904214,0.90776499,119050.0,119040.0,0.18481153]
[1753648904429,0.82549926,119050.0,119040.0,0.20161182]
[1753648904836,0.69665919,119050.0,119040.0,0.20361182]
[1753648905023,0.82549919,119050.0,119040.0,0.20361182]
[1753648905242,0.71884,119050.0,119040.0,0.20461182]
[1753648905500,0.46892,119050.0,119040.0,0.20461182]
[1753648905698,0.46892,119050.0,119040.0,0.56682815]
[1753648905906,0.46892,119050.0,119040.0,0.56582815]
[1753648906374,0.46892,119050.0,119040.0,0.24596182]
[1753648906587,0.34,119050.0,119040.0,0.23996182]
[1753648906827,0.46892,119050.0,119040.0,0.24796182]
[1753648907252,0.46892,119050.0,119040.0,0.24496182]
[1753648907457,0.34,119050.0,119040.0,0.56882815]
[1753648907692,0.46888,119050.0,119040.0,0.57282815]
[1753648908157,0.31643,119070.0,119060.0,0.18478055]
[1753648908405,0.13184,119070.0,119060.0,0.54784435]
[1753648908614,0.47184,119070.0,119060.0,0.54969435]
[1753648908827,0.47184,119070.0,119060.0,0.22582802]
[1753648909465,0.47184,119070.0,119060.0,0.22882802]
[1753648909859,0.47184,119070.0,119060.0,0.22797802]
[1753648910265,0.47184,119070.0,119060.0,0.22697802]
[1753648910618,0.47184,119070.0,119060.0,0.22897802]
[1753648910822,0.47184,119070.0,119060.0,0.20657802]
[1753648911511,0.50454,119070.0,119060.0,0.20657802]
[1753648912536,0.50446,119070.0,119060.0,0.20657802]
[1753648912761,0.50759,119070.0,119060.0,0.20657802]
[1753648912968,0.37883,119070.0,119060.0,0.20657802]
[1753648913180,0.50759,119070.0,119060.0,0.20657802]
[1753648917629,0.50968,119070.0,119060.0,0.20657802]
[1753648918276,0.53908,119070.0,119060.0,0.20657802]